[Event "ROU-ch Open 2021"]
[Site "Iasi"]
[Date "2021.04.19"]
[Round "1.18"]
[White "Voda, Costel"]
[Black "Antonica, Dragos-Andrei"]
[Result "0-1"]
[ECO "C12"]
[WhiteElo "1804"]
[BlackElo "2291"]
[Annotator "ChessBase"]
[PlyCount "84"]
[EventDate "2021.04.19"]
[EventType "swiss"]
[EventCountry "ROU"]
[SourceTitle "playchess.com"]
[Source "ChessBase"]
[SourceQuality "1"]
[TimeControl "5400+30"]

1. e4 {[%emt 0:00:00]} e6 {[%emt 0:00:00]} 2. Nc3 {[%emt 0:00:00]} d5 {[%emt 0:00:00]} 3. d4 {[%emt 0:00:00]} Bb4 {[%emt 0:00:11]} 4. Bd3 {[%emt 0:00:14]} dxe4 {[%emt 0:04:29]} 5. Bxe4 {[%emt 0:00:56]} Nf6 {[%emt 0:00:07]} 6. Bg5 {[%emt 0:01:43]} h6 {[%emt 0:02:18]} 7. Bxf6 {[%emt 0:02:04]} Qxf6 {[%emt 0:00:02]} 8. Qd3 {[%emt 0:00:59]} O-O {[%emt 0:04:26]} 9. Nf3 {[%emt 0:01:11]} Rd8 {[%emt 0:10:23]} 10. Qc4 {[%emt 0:04:04]} Bxc3+ {[%emt 0:11:05]} 11. Qxc3 {[%emt 0:00:43]} Qf4 {[%emt 0:00:18]} 12. Qe3 {[%emt 0:01:32]} Qxe3+ {[%emt 0:00:14]} 13. fxe3 {[%emt 0:00:02]} Nd7 {[%emt 0:00:09]} 14. O-O-O {[%emt 0:00:31]} Nf6 {[%emt 0:00:11]} 15. Bd3 {[%emt 0:00:17]} b6 {[%emt 0:03:54]} 16. h3 {[%emt 0:06:51]} Bb7 {[%emt 0:00:34]} 17. Rhf1 {[%emt 0:01:41]} Rac8 {[%emt 0:13:46]} 18. Rf2 {[%emt 0:02:58]} Kf8 {[%emt 0:04:21]} 19. c3 {[%emt 0:07:18]} c5 {[%emt 0:02:19]} 20. Bc2 {[%emt 0:09:44]} Bxf3 {[%emt 0:12:42]} 21. Rxf3 {[%emt 0:00:32]} Ne8 {[%emt 0:01:36]} 22. Bb3 {[%emt 0:06:27]} Ke7 {[%emt 0:01:26]} 23. Rdf1 {[%emt 0:07:31]} f6 {[%emt 0:01:38]} 24. Kb1 {[%emt 0:03:17]} Nd6 {[%emt 0:01:24]} 25. Bc2 {[%emt 0:00:34]} b5 {[%emt 0:06:19]} 26. Bd3 {[%emt 0:03:48]} b4 {[%emt 0:03:29]} 27. dxc5 {[%emt 0:03:36]} Nf7 {[%emt 0:00:54]} 28. Bc2 {[%emt 0:07:45]} bxc3 {[%emt 0:01:00]} 29. b4 {[%emt 0:00:28]} Rb8 {[%emt 0:03:59]} 30. a3 {[%emt 0:04:21]} a5 {[%emt 0:00:38]} 31. Rf4 {[%emt 0:00:31]} Rd2 {[%emt 0:04:16]} 32. Rd1 {[%emt 0:09:00]} Ne5 {[%emt 0:00:41]} 33. Rd4 {[%emt 0:07:21]} axb4 {[%emt 0:02:38]} 34. axb4 {[%emt 0:00:35]} Rxd1+ {[%emt 0:01:18]} 35. Bxd1 {[%emt 0:00:49]} Nc6 {[%emt 0:00:03]} 36. Rg4 {[%emt 0:00:43]} Nxb4 {[%emt 0:03:35]} 37. Rxg7+ {[%emt 0:00:47]} Kf8 {[%emt 0:00:01]} 38. Rh7 {[%emt 0:01:41]} Nd5+ {[%emt 0:01:31]} 39. Kc1 {[%emt 0:00:46]} Rb5 {[%emt 0:00:49]} 40. Rxh6 {[%emt 0:00:39]} Kg7 {[%emt 0:00:26]} 41. Rh5 {[%emt 0:00:12]} Nxe3 {[%emt 0:00:04]} 42. c6 {[%emt 0:00:43]} c2 {[%emt 0:00:14]} 0-1

[Event "ROU-ch Open 2021"]
[Site "Iasi"]
[Date "2021.04.19"]
[Round "1.19"]
[White "Gheorghiu, Calin"]
[Black "Dumitru, Luca-Serban"]
[Result "1-0"]
[ECO "C00"]
[WhiteElo "2283"]
[BlackElo "1799"]
[Annotator "ChessBase"]
[PlyCount "49"]
[EventDate "2021.04.19"]
[EventType "swiss"]
[EventCountry "ROU"]
[SourceTitle "playchess.com"]
[Source "ChessBase"]
[SourceQuality "1"]
[TimeControl "5400+30"]

1. e4 {[%emt 0:00:00]} e6 {[%emt 0:00:00]} 2. d3 {[%emt 0:03:23]} d5 {[%emt 0:00:45]} 3. Nd2 {[%emt 0:00:33]} Nf6 {[%emt 0:00:53]} 4. e5 {[%emt 0:02:38]} Nfd7 {[%emt 0:00:07]} 5. f4 {[%emt 0:00:07]} c5 {[%emt 0:00:52]} 6. Ngf3 {[%emt 0:00:34]} Nc6 {[%emt 0:00:20]} 7. g3 {[%emt 0:00:21]} f6 {[%emt 0:02:26]} 8. exf6 {[%emt 0:00:39]} Nxf6 {[%emt 0:00:18]} 9. Ne5 {[%emt 0:03:10]} Bd6 {[%emt 0:01:49]} 10. Nxc6 {[%emt 0:04:04]} bxc6 {[%emt 0:00:05]} 11. Nf3 {[%emt 0:00:42]} O-O {[%emt 0:01:32]} 12. Bg2 {[%emt 0:01:16]} Qc7 {[%emt 0:01:17]} 13. Qe2 {[%emt 0:05:55]} Re8 {[%emt 0:05:30]} 14. O-O {[%emt 0:05:30]} e5 {[%emt 0:02:53]} 15. fxe5 {[%emt 0:00:44]} Bxe5 {[%emt 0:00:10]} 16. Nxe5 {[%emt 0:00:48]} Rxe5 {[%emt 0:01:39]} 17. Qf2 {[%emt 0:01:55]} Qe7 {[%emt 0:00:35]} 18. Bf4 {[%emt 0:04:21]} Re2 {[%emt 0:05:11]} 19. Rae1 {[%emt 0:20:39]} Rxf2 {[%emt 0:08:34]} 20. Rxe7 {[%emt 0:00:06]} Rxc2 {[%emt 0:00:18]} 21. Bg5 {[%emt 0:17:18]} Ba6 {[%emt 0:02:01]} 22. Bh3 {[%emt 0:05:12]} Bxd3 {[%emt 0:02:12]} 23. Be6+ {[%emt 0:02:41]} Kf8 {[%emt 0:00:10]} 24. Rf7+ {[%emt 0:01:12]} Ke8 {[%emt 0:00:06]} 25. Rxg7 {[%emt 0:00:21]} 1-0

[Event "ROU-ch Open 2021"]
[Site "Iasi"]
[Date "2021.04.19"]
[Round "1.20"]
[White "Mihalache, Paul-Stelian"]
[Black "Isfan, Ioan-Marius"]
[Result "0-1"]
[ECO "E16"]
[WhiteElo "1799"]
[BlackElo "2263"]
[Annotator "ChessBase"]
[PlyCount "48"]
[EventDate "2021.04.19"]
[EventType "swiss"]
[EventCountry "ROU"]
[SourceTitle "playchess.com"]
[Source "ChessBase"]
[SourceQuality "1"]
[TimeControl "5400+30"]

1. d4 {[%emt 0:00:00]} Nf6 {[%emt 0:00:37]} 2. c4 {[%emt 0:00:00]} e6 {[%emt 0:00:05]} 3. Nf3 {[%emt 0:00:00]} Bb4+ {[%emt 0:00:14]} 4. Bd2 {[%emt 0:00:00]} Qe7 {[%emt 0:00:06]} 5. g3 {[%emt 0:00:12]} Bxd2+ {[%emt 0:02:11]} 6. Nbxd2 {[%emt 0:01:07]} b6 {[%emt 0:01:25]} 7. Bg2 {[%emt 0:00:18]} Bb7 {[%emt 0:00:04]} 8. O-O {[%emt 0:00:22]} O-O {[%emt 0:00:07]} 9. Qc2 {[%emt 0:02:03]} d6 {[%emt 0:00:18]} 10. e4 {[%emt 0:02:25]} e5 {[%emt 0:01:30]} 11. d5 {[%emt 0:01:12]} a5 {[%emt 0:00:45]} 12. Ne1 {[%emt 0:01:10]} Nbd7 {[%emt 0:03:30]} 13. Nd3 {[%emt 0:00:32]} c6 {[%emt 0:03:59]} 14. f4 {[%emt 0:08:40]} cxd5 {[%emt 0:05:48]} 15. cxd5 {[%emt 0:00:57]} Ba6 {[%emt 0:02:27]} 16. Rf3 {[%emt 0:04:15]} Rac8 {[%emt 0:03:06]} 17. Qd1 {[%emt 0:03:21]} exf4 {[%emt 0:06:34]} 18. gxf4 {[%emt 0:07:31]} Nxe4 {[%emt 0:01:36]} 19. Re3 {[%emt 0:07:24]} Bxd3 {[%emt 0:00:25]} 20. Nxe4 {[%emt 0:01:04]} Bxe4 {[%emt 0:01:02]} 21. Rxe4 {[%emt 0:00:19]} Qf6 {[%emt 0:02:37]} 22. b4 {[%emt 0:05:27]} Rc2 {[%emt 0:14:41]} 23. Qe1 {[%emt 0:18:55]} Qb2 {[%emt 0:03:54]} 24. Bf3 {[%emt 0:04:38]} Nf6 {[%emt 0:01:50]} 0-1

[Event "ROU-ch Open 2021"]
[Site "Iasi"]
[Date "2021.04.20"]
[Round "2.15"]
[White "Magold, Filip"]
[Black "Ciorgovean, Iustin"]
[Result "0-1"]
[ECO "B90"]
[WhiteElo "2065"]
[BlackElo "2338"]
[Annotator "NA"]
[PlyCount "211"]
[EventDate "2021.04.19"]
[EventType "swiss"]
[EventCountry "ROU"]
[SourceTitle "playchess.com"]
[Source "ChessBase"]
[SourceQuality "1"]
[TimeControl "5400+30"]

1. e4 {[%emt 0:00:00]} c5 {[%emt 0:00:00]} 2. Nf3 {[%emt 0:00:00]} d6 {[%emt 0:00:00]} 3. d4 {[%emt 0:00:00]} cxd4 {[%emt 0:00:00]} 4. Nxd4 {[%emt 0:00:00]} Nf6 {[%emt 0:00:00]} 5. Nc3 {[%emt 0:00:00]} a6 {[%emt 0:00:00]} 6. Be3 {[%emt 0:00:00]} e5 {[%emt 0:00:00]} 7. Nb3 {[%emt 0:00:02]} Be6 {[%emt 0:00:00]} 8. f3 {[%emt 0:00:23]} h5 {[%emt 0:00:03]} 9. Be2 {[%emt 0:00:52]} Nbd7 {[%emt 0:00:43]} 10. Qd2 {[%emt 0:00:18]} Be7 {[%emt 0:00:41]} 11. Nd5 {[%emt 0:05:45]} Nxd5 {[%emt 0:05:39]} 12. exd5 {[%emt 0:00:00]} Bf5 {[%emt 0:00:03]} 13. c4 {[%emt 0:00:00]} a5 {[%emt 0:04:27]} 14. O-O $11 {[%emt 0:04:41]} a4 {[%emt 0:12:11]} 15. Nc1 {[%emt 0:00:11]} O-O {[%emt 0:00:22]} 16. Nd3 {[%emt 0:03:09]} Bg6 {[%emt 0:06:31]} 17. Rac1 {[%emt 0:10:22]} Qa5 {[%emt 0:13:32]} 18. Qd1 {[%emt 0:21:26]} Bd8 {[%emt 0:09:44]} 19. Kh1 {[%emt 0:06:34]} Bb6 {[%emt 0:02:34]} 20. Bd2 {[%emt 0:02:12]} Qa7 {[%emt 0:00:34]} 21. Bb4 {[%emt 0:01:00]} Bxd3 {[%emt 0:11:25]} 22. Bxd3 {[%emt 0:01:19]} Bc5 {[%emt 0:00:12]} 23. Bc3 {[%emt 0:02:43]} f5 {[%emt 0:05:36]} 24. Bc2 {[%emt 0:08:56]} Be3 {[%emt 0:07:09]} 25. Rb1 {[%emt 0:02:45]} h4 {[%emt 0:04:08]} 26. f4 {[%emt 0:03:21]} g6 {[%emt 0:03:22]} 27. fxe5 {[%emt 0:00:44]} Nxe5 {[%emt 0:00:12]} 28. Qe1 {[%emt 0:06:44]} Bg5 {[%emt 0:03:39]} 29. Bxe5 {[%emt 0:00:58]} Rfe8 {[%emt 0:01:03]} 30. Bxf5 {[%emt 0:04:21]} gxf5 {[%emt 0:03:54]} 31. Rxf5 {[%emt 0:00:02]} Rxe5 {[%emt 0:00:09]} 32. Rxe5 {[%emt 0:00:01]} dxe5 {[%emt 0:00:15]} 33. Qxe5 {[%emt 0:00:01]} Qe3 {[%emt 0:00:43]} 34. Qf5 {[%emt 0:00:31]} Rf8 {[%emt 0:01:18]} 35. Qg6+ {[%emt 0:00:35]} Kh8 {[%emt 0:00:05]} 36. d6 {[%emt 0:01:57]} Qf4 {[%emt 0:01:31]} 37. Qd3 {[%emt 0:03:24]} Kg7 {[%emt 0:01:09]} 38. Rd1 {[%emt 0:02:58]} Bf6 {[%emt 0:01:08]} 39. g3 {[%emt 0:06:15]} hxg3 {[%emt 0:00:40]} 40. Rg1 {[%emt 0:00:52]} Bg5 {[%emt 0:03:08]} 41. Rxg3 {[%emt 0:00:26]} Kh6 {[%emt 0:01:34]} 42. c5 {[%emt 0:03:20]} Qf1+ {[%emt 0:00:50]} 43. Qxf1 {[%emt 0:00:02]} Rxf1+ {[%emt 0:00:05]} 44. Kg2 {[%emt 0:00:09]} Rb1 {[%emt 0:00:29]} 45. b3 {[%emt 0:01:25]} Rb2+ {[%emt 0:00:33]} 46. Kh3 {[%emt 0:00:05]} a3 {[%emt 0:00:33]} 47. d7 {[%emt 0:00:38]} Rd2 {[%emt 0:00:19]} 48. b4 {[%emt 0:00:46]} Rxd7 {[%emt 0:00:29]} 49. Rxa3 {[%emt 0:00:05]} Rd4 {[%emt 0:00:59]} 50. c6 {[%emt 0:01:22]} bxc6 {[%emt 0:00:07]} 51. Ra6 {[%emt 0:00:01]} Rxb4 {[%emt 0:00:13]} 52. Rxc6+ {[%emt 0:00:01]} Kh5 {[%emt 0:00:12]} 53. Rc2 {[%emt 0:00:35]} Ra4 {[%emt 0:00:11]} 54. Kg2 {[%emt 0:00:26]} Kg4 {[%emt 0:00:20]} 55. Rb2 {[%emt 0:00:26]} Bf4 {[%emt 0:00:20]} 56. Rc2 {[%emt 0:00:30]} Ra3 {[%emt 0:00:23]} 57. Rf2 {[%emt 0:00:34]} Rc3 {[%emt 0:00:23]} 58. Rb2 {[%emt 0:01:10]} Rh3 {[%emt 0:00:33]} 59. Kg1 {[%emt 0:00:44]} Kf3 {[%emt 0:00:28]} 60. Rf2+ {[%emt 0:00:17]} Ke3 {[%emt 0:00:21]} 61. Rb2 {[%emt 0:00:21]} Rh6 {[%emt 0:00:14]} 62. a4 {[%emt 0:00:35]} Rg6+ {[%emt 0:00:55]} 63. Kf1 {[%emt 0:00:13]} Ra6 {[%emt 0:00:28]} 64. Ra2 {[%emt 0:00:43]} Kf3 {[%emt 0:00:28]} 65. Rf2+ {[%emt 0:00:05]} Kg4 {[%emt 0:00:15]} 66. Ra2 {[%emt 0:00:14]} Kf3 {[%emt 0:00:44]} 67. Rf2+ {[%emt 0:00:04]} Ke4 {[%emt 0:00:04]} 68. Ra2 {[%emt 0:00:11]} Be3 {[%emt 0:00:08]} 69. a5 {[%emt 0:01:51]} Kf3 {[%emt 0:00:23]} 70. Rg2 {[%emt 0:00:51]} Rxa5 {[%emt 0:00:15]} 71. Rg3+ {[%emt 0:00:04]} Ke4 {[%emt 0:00:26]} 72. Kg2 {[%emt 0:00:41]} Bf4 {[%emt 0:00:37]} 73. Rb3 {[%emt 0:01:19]} Ra2+ {[%emt 0:00:08]} 74. Kh3 {[%emt 0:00:30]} Rxh2+ {[%emt 0:00:13]} 75. Kg4 {[%emt 0:00:07]} Rg2+ {[%emt 0:00:07]} 76. Kh3 {[%emt 0:00:53]} Rg8 {[%emt 0:00:13]} 77. Ra3 {[%emt 0:00:44]} Be3 {[%emt 0:00:33]} 78. Ra4+ {[%emt 0:00:27]} Kf3 {[%emt 0:00:27]} 79. Rh4 {[%emt 0:00:10]} Rg1 {[%emt 0:00:59]} 80. Kh2 {[%emt 0:00:23]} Ra1 {[%emt 0:00:59]} 81. Rh3+ {[%emt 0:00:17]} Kf2 {[%emt 0:00:13]} 82. Rh4 {[%emt 0:00:26]} Rb1 {[%emt 0:00:21]} 83. Rg4 {[%emt 0:00:49]} Ra1 {[%emt 0:01:25]} 84. Rh4 {[%emt 0:00:25]} Ra6 {[%emt 0:00:35]} 85. Rh7 {[%emt 0:00:46]} Rg6 {[%emt 0:00:33]} 86. Rf7+ {[%emt 0:00:14]} Ke2 {[%emt 0:00:07]} 87. Rf8 {[%emt 0:00:46]} Kd3 {[%emt 0:00:09]} 88. Rh8 {[%emt 0:00:43]} Ke4 {[%emt 0:00:15]} 89. Rh3 {[%emt 0:00:26]} Rg8 {[%emt 0:00:22]} 90. Kh1 {[%emt 0:00:32]} Bf4 {[%emt 0:00:53]} 91. Ra3 {[%emt 0:00:35]} Be3 {[%emt 0:00:12]} 92. Ra4+ {[%emt 0:00:07]} Kf3 {[%emt 0:00:26]} 93. Rh4 {[%emt 0:00:13]} Bf2 {[%emt 0:00:34]} 94. Rh7 {[%emt 0:00:26]} Rg6 {[%emt 0:01:10]} 95. Rf7+ {[%emt 0:00:20]} Kg3 {[%emt 0:00:27]} 96. Rh7 {[%emt 0:00:07]} Be1 {[%emt 0:03:21]} 97. Rh3+ {[%emt 0:00:20]} Kf2 {[%emt 0:00:19]} 98. Kh2 {[%emt 0:00:41]} Bd2 {[%emt 0:00:22]} 99. Rh4 {[%emt 0:00:32]} Rg8 {[%emt 0:00:25]} 100. Kh3 {[%emt 0:01:10]} Rg3+ {[%emt 0:00:51]} 101. Kh2 {[%emt 0:00:06]} Rg2+ {[%emt 0:00:53]} 102. Kh1 {[%emt 0:00:18]} Rg5 {[%emt 0:00:16]} 103. Kh2 {[%emt 0:00:08]} Be3 {[%emt 0:00:32]} 104. Kh3 {[%emt 0:00:35]} Kf3 {[%emt 0:00:38]} 105. Rh8 {[%emt 0:01:19]} Bf4 {[%emt 0:00:40]} 106. Rh7 {[%emt 0:01:20]} 0-1

[Event "ROU-ch Open 2021"]
[Site "Iasi"]
[Date "2021.04.20"]
[Round "3.8"]
[White "Ciorgovean, Iustin"]
[Black "Nevednichy, Vladislav"]
[Result "0-1"]
[ECO "D36"]
[WhiteElo "2338"]
[BlackElo "2533"]
[Annotator "ChessBase"]
[PlyCount "64"]
[EventDate "2021.04.19"]
[EventType "swiss"]
[EventCountry "ROU"]
[SourceTitle "playchess.com"]
[Source "ChessBase"]
[SourceQuality "1"]
[TimeControl "5400+30"]

1. d4 {[%emt 0:00:00]} Nf6 {[%emt 0:00:00]} 2. c4 {[%emt 0:00:00]} e6 {[%emt 0:00:00]} 3. Nc3 {[%emt 0:00:00]} d5 {[%emt 0:00:04]} 4. cxd5 {[%emt 0:00:00]} exd5 {[%emt 0:00:03]} 5. Bg5 {[%emt 0:00:00]} c6 {[%emt 0:00:06]} 6. e3 {[%emt 0:00:00]} Nbd7 {[%emt 0:00:58]} 7. Bd3 {[%emt 0:00:07]} Be7 {[%emt 0:00:26]} 8. h3 {[%emt 0:00:21]} O-O {[%emt 0:02:44]} 9. Qc2 {[%emt 0:00:50]} Re8 {[%emt 0:00:59]} 10. Nf3 {[%emt 0:00:28]} Ne4 {[%emt 0:05:14]} 11. Bxe4 {[%emt 0:08:25]} dxe4 {[%emt 0:00:09]} 12. Nxe4 {[%emt 0:02:20]} Bxg5 {[%emt 0:00:34]} 13. Nexg5 {[%emt 0:04:33]} Nf8 {[%emt 0:00:22]} 14. h4 {[%emt 0:28:32]} h6 {[%emt 0:04:57]} 15. Nh3 {[%emt 0:00:24]} Qf6 {[%emt 0:09:18]} 16. Kf1 {[%emt 0:04:13]} Bf5 {[%emt 0:03:29]} 17. Qc3 {[%emt 0:02:24]} Ne6 {[%emt 0:02:23]} 18. Nhg1 {[%emt 0:04:20]} Rad8 {[%emt 0:05:41]} 19. Rc1 {[%emt 0:08:13]} c5 {[%emt 0:17:12]} 20. dxc5 {[%emt 0:06:50]} Bd3+ {[%emt 0:00:16]} 21. Ke1 {[%emt 0:07:13]} Qg6 {[%emt 0:00:11]} 22. Rh2 {[%emt 0:01:45]} Nf4 {[%emt 0:11:06]} 23. h5 {[%emt 0:10:29]} Rxe3+ {[%emt 0:02:47]} 24. fxe3 {[%emt 0:00:00]} Qg3+ {[%emt 0:00:04]} 25. Kd1 {[%emt 0:00:02]} Be4+ {[%emt 0:03:08]} 26. Qd2 {[%emt 0:00:08]} Rxd2+ {[%emt 0:00:21]} 27. Kxd2 {[%emt 0:00:15]} Qf2+ {[%emt 0:00:19]} 28. Kd1 {[%emt 0:00:26]} Qf1+ {[%emt 0:02:02]} 29. Kd2 {[%emt 0:00:22]} Qd3+ {[%emt 0:00:07]} 30. Ke1 {[%emt 0:00:17]} Qxe3+ {[%emt 0:00:03]} 31. Kd1 {[%emt 0:00:19]} Bxf3+ {[%emt 0:00:05]} 32. Nxf3 {[%emt 0:00:04]} Qe2# {[%emt 0:00:06]} 0-1

[Event "ROU-ch Open 2021"]
[Site "Iasi"]
[Date "2021.04.20"]
[Round "3.9"]
[White "Jianu, Vlad-Cristian"]
[Black "Antonica, Dragos-Andrei"]
[Result "1-0"]
[ECO "E16"]
[WhiteElo "2532"]
[BlackElo "2291"]
[Annotator "ChessBase"]
[PlyCount "65"]
[EventDate "2021.04.19"]
[EventType "swiss"]
[EventCountry "ROU"]
[SourceTitle "playchess.com"]
[Source "ChessBase"]
[SourceQuality "1"]
[TimeControl "5400+30"]

1. d4 {[%emt 0:00:00]} Nf6 {[%emt 0:03:35]} 2. Nf3 {[%emt 0:00:00]} e6 {[%emt 0:00:09]} 3. g3 {[%emt 0:00:00]} b6 {[%emt 0:00:59]} 4. Bg2 {[%emt 0:00:00]} Bb7 {[%emt 0:01:49]} 5. O-O {[%emt 0:00:01]} Be7 {[%emt 0:01:51]} 6. c4 {[%emt 0:00:12]} O-O {[%emt 0:00:30]} 7. Nc3 {[%emt 0:00:05]} d5 {[%emt 0:01:02]} 8. cxd5 {[%emt 0:00:13]} Nxd5 {[%emt 0:02:49]} 9. Nxd5 {[%emt 0:00:06]} exd5 {[%emt 0:02:05]} 10. Bf4 {[%emt 0:00:10]} Nd7 {[%emt 0:02:13]} 11. Rc1 {[%emt 0:00:18]} c6 {[%emt 0:18:05]} 12. Qa4 {[%emt 0:01:10]} Re8 {[%emt 0:01:21]} 13. h4 {[%emt 0:07:48]} Bf6 {[%emt 0:08:15]} 14. Rfe1 {[%emt 0:04:55]} Nf8 {[%emt 0:01:38]} 15. Be5 {[%emt 0:07:28]} Be7 {[%emt 0:10:02]} 16. e3 {[%emt 0:08:30]} f6 {[%emt 0:11:25]} 17. Bf4 {[%emt 0:00:05]} Ne6 {[%emt 0:00:39]} 18. Qb3 {[%emt 0:13:38]} Nxf4 {[%emt 0:05:42]} 19. exf4 {[%emt 0:01:12]} Bf8 {[%emt 0:05:00]} 20. Bh3 {[%emt 0:02:36]} Qd6 {[%emt 0:04:07]} 21. Qd3 {[%emt 0:01:09]} Re7 {[%emt 0:08:56]} 22. Rxe7 {[%emt 0:06:52]} Bxe7 {[%emt 0:00:37]} 23. Bf5 {[%emt 0:01:34]} g6 {[%emt 0:02:35]} 24. Bxg6 {[%emt 0:00:35]} hxg6 {[%emt 0:00:02]} 25. Qxg6+ {[%emt 0:00:06]} Kh8 {[%emt 0:03:03]} 26. Re1 {[%emt 0:01:06]} Rf8 {[%emt 0:00:45]} 27. Qh6+ {[%emt 0:30:54]} Kg8 {[%emt 0:00:02]} 28. Qg6+ {[%emt 0:00:04]} Kh8 {[%emt 0:00:01]} 29. Ng5 {[%emt 0:01:38]} fxg5 {[%emt 0:00:02]} 30. Re6 {[%emt 0:00:04]} Qd8 {[%emt 0:03:18]} 31. Qh5+ {[%emt 0:02:07]} Kg8 {[%emt 0:00:02]} 32. Rg6+ {[%emt 0:00:07]} Kf7 {[%emt 0:00:04]} 33. Rh6+ {[%emt 0:00:18]} 1-0

[Event "ROU-ch Open 2021"]
[Site "Iasi"]
[Date "2021.04.20"]
[Round "3.10"]
[White "Gheorghiu, Calin"]
[Black "Nanu, Costica-Ciprian"]
[Result "0-1"]
[ECO "A45"]
[WhiteElo "2283"]
[BlackElo "2503"]
[Annotator "ChessBase"]
[PlyCount "70"]
[EventDate "2021.04.19"]
[EventType "swiss"]
[EventCountry "ROU"]
[SourceTitle "playchess.com"]
[Source "ChessBase"]
[SourceQuality "1"]
[TimeControl "5400+30"]

1. d4 {[%emt 0:00:52]} Nf6 {[%emt 0:00:00]} 2. Bf4 {[%emt 0:00:04]} d6 {[%emt 0:00:16]} 3. Nc3 {[%emt 0:01:32]} Nbd7 {[%emt 0:00:09]} 4. Nf3 {[%emt 0:01:01]} c6 {[%emt 0:00:16]} 5. e4 {[%emt 0:01:37]} Qa5 {[%emt 0:00:13]} 6. e5 {[%emt 0:09:57]} Ne4 {[%emt 0:06:23]} 7. exd6 {[%emt 0:26:50]} Nxc3 {[%emt 0:01:10]} 8. bxc3 {[%emt 0:00:57]} exd6 {[%emt 0:04:44]} 9. Bd3 {[%emt 0:16:50]} Be7 {[%emt 0:10:26]} 10. O-O {[%emt 0:00:36]} Nf6 {[%emt 0:00:17]} 11. Re1 {[%emt 0:02:23]} Qd8 {[%emt 0:00:52]} 12. h3 {[%emt 0:05:55]} O-O {[%emt 0:00:36]} 13. c4 {[%emt 0:00:55]} Re8 {[%emt 0:00:33]} 14. Qd2 {[%emt 0:05:16]} Bd7 {[%emt 0:05:30]} 15. Rab1 {[%emt 0:00:20]} b6 {[%emt 0:00:10]} 16. Re2 {[%emt 0:04:03]} Bf8 {[%emt 0:00:37]} 17. Rxe8 {[%emt 0:00:56]} Nxe8 {[%emt 0:00:25]} 18. Re1 {[%emt 0:03:45]} h6 {[%emt 0:03:37]} 19. c3 {[%emt 0:00:44]} Nf6 {[%emt 0:00:13]} 20. g4 {[%emt 0:03:04]} Qc8 {[%emt 0:03:55]} 21. Kh2 {[%emt 0:01:06]} c5 {[%emt 0:02:14]} 22. d5 {[%emt 0:01:06]} b5 {[%emt 0:05:06]} 23. cxb5 {[%emt 0:00:55]} c4 {[%emt 0:01:13]} 24. Bc2 {[%emt 0:00:03]} Qc5 {[%emt 0:01:26]} 25. a4 {[%emt 0:02:11]} Nxd5 {[%emt 0:01:24]} 26. Be4 {[%emt 0:00:25]} Nxf4 {[%emt 0:00:05]} 27. Bxa8 {[%emt 0:01:47]} Nd3 {[%emt 0:00:24]} 28. Re3 {[%emt 0:00:57]} d5 {[%emt 0:00:14]} 29. Rxd3 {[%emt 0:01:19]} cxd3 {[%emt 0:00:15]} 30. Kg1 {[%emt 0:00:08]} Qc4 {[%emt 0:10:52]} 31. Ne5 {[%emt 0:01:29]} Qe4 {[%emt 0:00:52]} 32. Nxd3 {[%emt 0:00:18]} Qxa4 {[%emt 0:00:44]} 33. Bxd5 {[%emt 0:00:39]} Bxb5 {[%emt 0:00:29]} 34. Ne5 {[%emt 0:00:55]} Be8 {[%emt 0:00:22]} 35. Qe3 {[%emt 0:02:48]} Qd1+ {[%emt 0:00:11]} 0-1

[Event "ROU-ch Open 2021"]
[Site "Iasi"]
[Date "2021.04.20"]
[Round "3.11"]
[White "Isfan, Ioan-Marius"]
[Black "Filip, Lucian-Ioan"]
[Result "1/2-1/2"]
[ECO "A32"]
[WhiteElo "2263"]
[BlackElo "2442"]
[Annotator "NA"]
[PlyCount "48"]
[EventDate "2021.04.19"]
[EventType "swiss"]
[EventCountry "ROU"]
[SourceTitle "playchess.com"]
[Source "ChessBase"]
[SourceQuality "1"]
[TimeControl "5400+30"]

1. d4 {[%emt 0:00:00]} e6 {[%emt 0:00:00]} 2. Nf3 {[%emt 0:00:00]} c5 {[%emt 0:00:00]} 3. c4 {[%emt 0:00:00]} cxd4 {[%emt 0:00:00]} 4. Nxd4 {[%emt 0:00:00]} Nf6 {[%emt 0:03:49]} 5. g3 {[%emt 0:02:47]} Qa5+ {[%emt 0:08:21]} 6. Bd2 {[%emt 0:14:12]} Qb6 {[%emt 0:02:34]} 7. Bc3 {[%emt 0:00:08]} Ne4 {[%emt 0:00:39]} 8. Bg2 {[%emt 0:01:49]} Nxc3 {[%emt 0:01:44]} 9. Nxc3 {[%emt 0:00:04]} Nc6 {[%emt 0:14:21]} 10. Nxc6 {[%emt 0:07:00]} bxc6 {[%emt 0:02:25]} 11. Qc2 {[%emt 0:07:35]} Ba6 {[%emt 0:03:18]} 12. b3 {[%emt 0:02:47]} d5 {[%emt 0:02:09]} 13. O-O $11 {[%emt 0:02:32]} Rc8 {[%emt 0:05:07]} 14. Rfd1 {[%emt 0:07:27]} Be7 {[%emt 0:01:41]} 15. Rac1 {[%emt 0:01:51]} O-O {[%emt 0:00:41]} 16. Na4 {[%emt 0:04:12]} Qa5 {[%emt 0:02:04]} 17. Qd2 {[%emt 0:01:34]} Bb4 {[%emt 0:13:06]} 18. Qg5 {[%emt 0:01:01]} Rfd8 {[%emt 0:06:49]} 19. Bf3 {[%emt 0:20:21]} h6 {[%emt 0:23:58]} 20. Qh5 {[%emt 0:00:14]} dxc4 {[%emt 0:01:25]} 21. Qxa5 {[%emt 0:01:01]} Bxa5 {[%emt 0:00:06]} 22. Nc5 {[%emt 0:00:02]} Rxd1+ {[%emt 0:05:55]} 23. Rxd1 {[%emt 0:00:01]} Bb5 {[%emt 0:00:13]} 24. a4 {[%emt 0:00:20]} Bb4 {[%emt 0:00:54]} 1/2-1/2

[Event "ROU-ch Open 2021"]
[Site "Iasi"]
[Date "2021.04.20"]
[Round "3.12"]
[White "Nastore, Pavel-Alexandru"]
[Black "Stoleriu, George"]
[Result "1/2-1/2"]
[ECO "C12"]
[WhiteElo "2256"]
[BlackElo "2349"]
[Annotator "NA"]
[PlyCount "69"]
[EventDate "2021.04.19"]
[EventType "swiss"]
[EventCountry "ROU"]
[SourceTitle "playchess.com"]
[Source "ChessBase"]
[SourceQuality "1"]
[TimeControl "5400+30"]

1. e4 {[%emt 0:00:00]} e6 {[%emt 0:00:00]} 2. d4 {[%emt 0:00:00]} d5 {[%emt 0:00:00]} 3. Nc3 {[%emt 0:00:00]} Nf6 {[%emt 0:00:00]} 4. Bg5 {[%emt 0:00:02]} Bb4 {[%emt 0:00:00]} 5. e5 {[%emt 0:00:22]} h6 {[%emt 0:00:00]} 6. Bd2 {[%emt 0:00:22]} Bxc3 {[%emt 0:00:15]} 7. bxc3 {[%emt 0:00:04]} Ne4 {[%emt 0:00:05]} 8. Bc1 {[%emt 0:00:25]} c5 {[%emt 0:01:04]} 9. Ne2 {[%emt 0:00:23]} Qa5 {[%emt 0:20:43]} 10. f3 $14 {[%emt 0:00:08]} Ng5 {[%emt 0:07:07]} 11. h4 {[%emt 0:06:03]} Nh7 {[%emt 0:00:13]} 12. Qd2 {[%emt 0:16:56]} Nc6 {[%emt 0:02:52]} 13. a4 {[%emt 0:01:17]} b6 {[%emt 0:01:45]} 14. Qe3 {[%emt 0:11:36]} Ba6 {[%emt 0:11:15]} 15. Bd2 {[%emt 0:00:46]} Bxe2 {[%emt 0:03:12]} 16. Bxe2 {[%emt 0:00:07]} c4 {[%emt 0:00:14]} 17. g4 {[%emt 0:06:42]} O-O-O {[%emt 0:04:10]} 18. f4 {[%emt 0:04:25]} Rde8 {[%emt 0:06:05]} 19. Kf2 {[%emt 0:12:08]} Qa6 {[%emt 0:06:51]} 20. Bc1 {[%emt 0:02:47]} f6 {[%emt 0:05:38]} 21. Kg2 {[%emt 0:00:45]} Qb7 {[%emt 0:05:52]} 22. Bf3 {[%emt 0:00:21]} Qf7 {[%emt 0:01:07]} 23. Ba3 {[%emt 0:04:44]} Qg6 {[%emt 0:02:50]} 24. Qe2 {[%emt 0:05:07]} Nf8 {[%emt 0:05:27]} 25. Rab1 {[%emt 0:12:08]} h5 {[%emt 0:02:36]} 26. g5 {[%emt 0:01:22]} f5 {[%emt 0:02:33]} 27. Rb5 {[%emt 0:02:43]} Qf7 {[%emt 0:01:25]} 28. Rhb1 {[%emt 0:00:58]} Rd8 {[%emt 0:05:51]} 29. Qf1 {[%emt 0:01:14]} Rd7 {[%emt 0:01:08]} 30. Be2 {[%emt 0:00:56]} Ng6 {[%emt 0:02:41]} 31. Kg3 {[%emt 0:00:45]} Nge7 {[%emt 0:00:17]} 32. Bd6 {[%emt 0:00:05]} Rb7 {[%emt 0:00:46]} 33. Qc1 {[%emt 0:03:17]} Na5 {[%emt 0:00:38]} 34. Bf3 {[%emt 0:03:26]} Nec6 {[%emt 0:00:48]} 35. Qa3 {[%emt 0:00:21]} 1/2-1/2